Cogmind - Beta 15 @@@ ROGUE MODE // 2025.06.16 @ 20:23:36 Player: quak Result: Destroyed by D-53 Grenadier with Mini Grenade Launcher Performance ------------- Evolutions (0) 0 Regions Visited (2) 400 Robots Destroyed (33) 165 Value Destroyed (588) 588 Prototype IDs (0) 0 Alien Tech Used (0) 0 Bonus (0) 0 TOTAL SCORE: 1153 Bonus ------- None Cogmind --------- Core Integrity 0/250 Matter 272/300 Energy 100/100 System Corruption 6% Temperature Cool (0) Movement Core (50) Location -10/Mines Parts ------- > --- POWER (1) -------- (None) > --- PROPULSION (2) --- (None) > --- UTILITY (2) ------ (None) > --- WEAPON (2) ------- (None) > --- INVENTORY (5) ---- Ion Engine Improved Treads Structural Scanner Mini Grenade Launcher Mini Grenade Launcher Peak State ------------ > --- POWER ------------ Ion Engine > --- PROPULSION ------- Improved Treads Improved Treads > --- UTILITY ---------- Medium Storage Unit Seismic Detector > --- WEAPON ----------- Light Assault Rifle Light Assault Rifle > --- INVENTORY -------- Ion Engine Heat Sink Huge Storage Unit High-capacity Battery High-capacity Matter Pod Structural Scanner Mini Grenade Launcher Mini Grenade Launcher Datajack Mining Laser [Rating: 10] Favorites ----------- Power Ion Engine Engine Ion Engine Propulsion Light Treads Treads Light Treads Leg Aluminum Leg Utility Seismic Detector Device Seismic Detector Storage Medium Storage Unit Weapon Light Assault Rifle Energy Gun EM Pulse Gun Ballistic Gun Light Assault Rifle Special Weapon Mining Laser Build | -11 -10 -10 ------- Run | Yrd Mat Min Slots Evolved . | . . . Power . | . . . Propulsion . | . . . Utility . | . . . Weapon . | . . . Parts Attached 25 | 8 17 . Power 5 | 1 4 . Engine 5 | 1 4 . Core . | . . . Reactor . | . . . Propulsion 8 | 2 6 . Treads 4 | . 4 . Leg 4 | 2 2 . Wheel . | . . . Hover . | . . . Flight . | . . . Utility 5 | 3 2 . Device 2 | 2 . . Storage 3 | 1 2 . Processor . | . . . Hackware . | . . . Protection . | . . . Artifact . | . . . Weapon 7 | 2 5 . Energy Gun 1 | . 1 . Energy Cannon . | . . . Ballistic Gun 5 | 2 3 . Ballistic Cannon . | . . . Launcher . | . . . Special Weapon 1 | . 1 . Impact Weapon . | . . . Slashing Weapon . | . . . Piercing Weapon . | . . . Special Melee Weapon . | . . . Unidentified Prototypes . | . . . Parts Lost 7 | . 4 3 Power . | . . . Propulsion 2 | . 1 1 Utility 1 | . . 1 Weapon 4 | . 3 1 Highest Loss Streak 3 | . 3 3 To Critical Strikes . | . . . Average Backups 7 | 2 8 10 Power 1 | . 1 1 Propulsion 1 | 1 1 2 Utility 3 | . 3 5 Weapon 1 | . 1 2 Tool/Special . | . . . Unused Backups 16 | . 7 9 Power 3 | . 2 1 Propulsion 2 | . . 2 Utility 5 | . 1 4 Weapon 5 | . 3 2 Tool/Special 1 | . 1 . Average Slot Usage (%) 97 | . 97 98 Engine 14 | . 14 14 Treads 17 | . 17 28 Leg 9 | . 10 . Device 13 | . 14 12 Storage 14 | . 14 14 Energy Gun 2 | . 2 . Ballistic Gun 23 | . 22 28 Peak Build Rating 10 | 9 10 10 Average Rating 7 | 5 7 9 On Entrance 5 | . 7 10 Naked Turns . | . . . Heaviest Build 88 | 13 88 18 Greatest Support 46 | 20 46 46 Greatest Overweight (x) 2 | 1 2 . Average Overweight (x) . | . . . Largest Inventory Capacity 25 | 8 25 10 Average Capacity 9 | 7 9 10 Most Carried 10 | 5 10 10 Average Carried 7 | 2 8 10 Final Capacity 10 | 8 10 5 Final Carried 10 | 5 10 5 Class Distribution -------------------- 57% | Scavenger-Mutant 42% | Mutant Dominant Class ---------------- Scavenger-Mutant | -10/Materials Mutant | -10/Mines Resources | -11 -10 -10 ----------- Run | Yrd Mat Min Matter Collected 900 | 222 631 47 Remotely . | . . . Salvage Created 843 | 25 779 39 Parts 56 | 7 43 6 Haulers Intercepted 2 | . 2 . Recyclers Shooed . | . . . Parts Field Recycled . | . . . Retrieved Matter . | . . . Parts Self-Destructed . | . . . Prevented . | . . . Kills | -11 -10 -10 ------- Run | Yrd Mat Min Combat Hostiles Destroyed 23 | . 19 4 Melee 1 | . . 1 Guns 21 | . 18 3 Cannons 1 | . 1 . Classes Destroyed 8 | 1 6 1 Worker 1 | . 1 . Tunneler 2 | 2 . . Hauler 2 | . 2 . Operator 3 | . 3 . Watcher 3 | . 3 . Swarmer 12 | . 9 3 Grunt 10 | . 10 . Assembled 1 | . . 1 Best Kill Streak 4 | 1 4 3 Combat Bots Only 4 | . 4 3 Max Kills in Single Turn 1 | 1 1 1 Gunslinging . | . . . Exploded . | . . . Melee 1 | . . 1 Uniques/NPCs Destroyed . | . . . Combat | -11 -10 -10 -------- Run | Yrd Mat Min Hostile Shots Fired 155 | . 117 38 Missed 40 | . 33 7 Hits 115 | . 84 31 Melee 5 | . . 5 Projectile 110 | . 84 26 AOE 7 | . . 7 Damage Taken 1404 | . 846 558 Core 254 | . 170 84 Absorbed by Shields . | . . . Core Remaining (%) 100 | 100 . . Volleys Fired 124 | 12 104 8 Largest 2 | 2 2 2 Hottest 120 | 40 120 40 Shots Fired 224 | 24 184 16 Gun 223 | 24 183 16 Cannon . | . . . Launcher . | . . . Special 1 | . 1 . Kinetic 211 | 24 171 16 Thermal 1 | . 1 . Explosive . | . . . Electromagnetic 12 | . 12 . Robot Hit Streak 9 | 6 9 1 Robot Miss Streak 5 | 4 5 3 Penetration Max . | . . . Secondary Targets . | . . . Shots Hit Robots 128 | 15 107 6 Core Hits 56 | 2 48 6 Critical Kills 1 | . . 1 Critical Parts Destroyed . | . . . Critical Strikes 1 | . . 1 Destroy 1 | . . 1 Melee Attacks . | . . . Impact . | . . . Slashing . | . . . Piercing . | . . . Sneak Attacks . | . . . Combat Hostiles . | . . . Follow-up Attacks . | . . . Damage Inflicted 1531 | 174 1287 70 Guns 1485 | 174 1251 60 Cannons . | . . . Explosions . | . . . Melee . | . . . Ramming 22 | . 12 10 Kinetic 1334 | 174 1100 60 Thermal 24 | . 24 . Explosive . | . . . Electromagnetic 151 | . 151 . Impact . | . . . Slashing . | . . . Piercing . | . . . Highest Corruption 6 | . 1 6 Average Corruption 1 | . 1 1 Corruption Purged . | . . . Corruption Blocked . | . . . Effects 5 | . 4 1 Message Errors 1 | . 1 . Matter Fused 3 | . 2 1 Energy Discharges 1 | . 1 . Overload Shots . | . . . Overflow Damage . | . . . Projectiles . | . . . Explosions . | . . . Melee . | . . . Knockbacks 1 | . 1 . Impact 1 | . 1 . Kinetic . | . . . Secondary . | . . . Self-Inflicted Damage . | . . . Shots . | . . . Rammed 9 | . 3 6 Targets Rammed 10 | . 3 7 Kicked . | . . . Crushed 1 | . . 1 Highest Temperature 88 | . 88 . Average Temperature 26 | . 26 . Received Heat Transfer 336 | . 336 . Siege Activations . | . . . Martial Activations . | . . . Shielding Activations . | . . . Robots Disrupted . | . . . Combat Hostiles . | . . . Robots Corrupted . | . . . Combat Hostiles . | . . . Parts Fried . | . . . Impact Corruptions . | . . . Robots Melted . | . . . Combat Hostiles . | . . . Parts Melted . | . . . Heat Transferred 50 | . 50 . Parts Sabotaged . | . . . Parts Stolen . | . . . Parts Stripped . | . . . Power Chain Reactions . | . . . Alert | -11 -10 -10 ------- Run | Yrd Mat Min Maximum Alert Level . | . . . Low Security (%) 100 | 100 100 100 Level 1 . | . . . Level 2 . | . . . Level 3 . | . . . Level 4 . | . . . Level 5 . | . . . High Security . | . . . Max Security . | . . . Peak Influence 165 | 5 165 85 Initial 25 | . . 25 Average 90 | 1 99 66 Influence Increases 661 | 10 581 70 Destroy 0b10 Robot/C 440 | . 380 60 Destroy 0b10 Robot/NC 55 | 10 45 . Destroy Leader 100 | . 90 10 Successful Hack 15 | . 15 . Destroy Structure 6 | . 6 . Lose Combat Pursuer 45 | . 45 . Influence Decreases 626 | 10 516 100 Entered New Map 40 | . . 40 Time Decay 516 | 10 476 30 Lost Part 70 | . 40 30 Squads Dispatched 4 | . 4 . Investigation 1 | . 1 . Extermination . | . . . Reinforcement 3 | . 3 . Assault . | . . . Garrison . | . . . Intercept . | . . . Searches Triggered . | . . . Construction Impeded . | . . . Haulers Reinforced . | . . . Active Scanning Responses . | . . . Cargo Convoy Interrupts . | . . . Stealth | -11 -10 -10 --------- Run | Yrd Mat Min Distress Signals 3 | . 2 1 Communications Jammed . | . . . Distress Signals . | . . . Times Spotted 57 | . 35 22 Peak Tracking Total 16 | . 8 16 Tactical Retreats 3 | . 3 . Traps | -11 -10 -10 ------- Run | Yrd Mat Min Traps Triggered 3 | . 3 . Indirectly . | . . . Trap Hack Attempts . | . . . Triggered . | . . . Disarmed . | . . . Reprogrammed . | . . . Reused . | . . . Traps Extracted . | . . . Installed . | . . . Triggered . | . . . Machines | -11 -10 -10 ---------- Run | Yrd Mat Min Machines Disabled . | . . . Max in Single Turn . | . . . Machines Repaired . | . . . Machines Dismantled . | . . . Machines Sabotaged . | . . . Overloaded Fab Kills . | . . . Hacking | -11 -10 -10 --------- Run | Yrd Mat Min Machines Accessed 3 | . 3 . Terminals 3 | . 3 . Fabricators . | . . . Repair Stations . | . . . Recycling Units . | . . . Scanalyzers . | . . . Garrison Access . | . . . Total Hacks 8 | . 8 . Successful 3 | . 3 . Failed 5 | . 5 . Catastrophic 1 | . 1 . Database Lockouts . | . . . Manual 6 | . 6 . Terminals 8 | . 8 . Fabricators . | . . . Repair Stations . | . . . Recycling Units . | . . . Scanalyzers . | . . . Garrison Access . | . . . Terminal Hacks 3 | . 3 . Robot Analysis 2 | . 2 . Hauler Manifests 1 | . 1 . Fabricator Hacks . | . . . Repair Station Hacks . | . . . Recycling Unit Hacks . | . . . Scanalyzer . | . . . Garrison Access Hacks . | . . . Unauthorized Hacks . | . . . Terminals . | . . . Fabricators . | . . . Repair Stations . | . . . Recycling Units . | . . . Scanalyzers . | . . . Garrison Access . | . . . Data Cores Recovered . | . . . Used . | . . . Hacking Detections 3 | . 3 . Full Trace Events . | . . . Feedback Events . | . . . Feedback Blocked . | . . . Robot Schematics Acquired . | . . . Robots Built . | . . . Authchips . | . . . Time . | . . . Total Robot Build Rating . | . . . Part Schematics Acquired . | . . . Parts Built . | . . . Authchips . | . . . Time . | . . . Total Part Build Rating . | . . . Parts Repaired . | . . . Time . | . . . Parts Recycled . | . . . Recycled Matter . | . . . Retrieved Matter . | . . . Retrieved Components . | . . . Parts Scanalyzed . | . . . Part Schematics Acquired . | . . . Parts Damaged . | . . . Bothacking | -11 -10 -10 ------------ Run | Yrd Mat Min Used RIF Installer . | . . . Robots Hacked . | . . . Non-combat . | . . . Combat . | . . . Robot Hacks Applied . | . . . Relay Couplers Released . | . . . Fabnet Peak Effective % . | . . . Robots Rewired . | . . . Allies Hacked . | . . . Hacks Repelled . | . . . Allies | -11 -10 -10 -------- Run | Yrd Mat Min Total Allies . | . . . Largest Group . | . . . Highest-Rated Group . | . . . Highest-Rated Ally . | . . . Total Orders . | . . . Ally Attacks . | . . . Total Damage . | . . . Kills . | . . . Allies Corrupted . | . . . Allies Melted . | . . . Intel | -11 -10 -10 ------- Run | Yrd Mat Min Active Infowar (turns) 1467 | 25 1377 65 Terrain 3 | 3 . . Seismic 1464 | 22 1377 65 Robot Analysis Total 2 | . 2 . Derelict Logs Recovered . | . . . Drone Launches . | . . . Drone Recoveries . | . . . Exploration | -11 -10 -10 ------------- Run | Yrd Mat Min Turns Passed 1566 | 113 1377 76 Spaces Moved 748 | 55 665 28 Core 11 | 10 . 1 Treads 472 | . 445 27 Legs 265 | 45 220 . Wheels . | . . . Hover . | . . . Flight . | . . . Fastest Speed 50 | 50 120 50 Average Speed 144 | 110 147 156 Slowest Speed 320 | 120 320 160 Overloaded Moves . | . . . Propulsion Burnouts . | . . . Robots Hopped . | . . . Potential Cave-ins . | . . . Cave-ins Triggered . | . . . Exploration Rate (%) 35 | 3 95 9 Regions Visited 2 Branch Regions 1 Pre-discovered Areas . | . . . Known Exits Taken . | . . . Unknown Exits Taken 2 | 1 1 . Scrap Searched . | . . . Spaces Dug . | . . . Terrain Destroyed . | . . . Melee . | . . . Projectile . | . . . AOE . | . . . Terrain Rammed . | . . . Walls Destroyed . | . . . Machines Disabled . | . . . Actions | -11 -10 -10 --------- Run | Yrd Mat Min Total 1022 | 80 899 43 Wait 65 | . 65 . Move 746 | 54 664 28 Hop . | . . . Pick Up 22 | 5 17 . Fast Attach 11 | 7 4 . Attach 5 | 1 4 . Detach 1 | 1 . . Swap 15 | . 15 . Drop 23 | . 23 . Fire 124 | 12 104 8 Melee . | . . . Ram . | . . . Kick . | . . . Crush 10 | . 3 7 Escape Stasis . | . . . Rewire . | . . . Trap . | . . . Miscellaneous . | . . . Route ------- -11/Scrapyard -10/Materials (discovered 4 exits: [*Mat x3] / [*Min]) -10/Mines History --------- Turn | Location | Event 15 | -11/Scrapyard | Discovered new exit (range 14) 114 | -11/Scrapyard | Entered Materials 305 | -10/Materials | Build established: Mutant 511 | -10/Materials | Discovered new exit (range 3) 632 | -10/Materials | Discovered new exit (range 13) 659 | -10/Materials | Lost 3 parts (1n2w) 675 | -10/Materials | Build established: Scavenger-Mutant 865 | -10/Materials | Core integrity fell below 50% 1114 | -10/Materials | Discovered new exit (range 13) 1209 | -10/Materials | Discovered new exit (range 7) 1491 | -10/Materials | Entered Mines 1505 | -10/Mines | Core integrity fell below 20% 1531 | -10/Mines | Assembled infested the area 1563 | -10/Mines | Build established: Mutant 1567 | -10/Mines | Released all parts (4) 1567 | -10/Mines | Destroyed by D-53 Grenadier with Mini Grenade Launcher Last Messages --------------- 01560_ R-06 Scavenger destroyed. 01560_ as-89301 destroyed. 01560_ Crushed as-39011. 01560_ as-39011 destroyed. 01561_ as-81479 destroyed. 01561_ as-16142 destroyed. 01562_ The unstable cave ceiling collapses. 01562_ Slammed into as-40964. 01563_ as-96540 destroyed. 01563_ as-65081 destroyed. 01564_ System corrupted: Matter fused (-5). 01564_ as-40964 destroyed. 01565_ Imp. Treads destroyed. 01565_ as-64504 destroyed. 01566_ as-79377 destroyed. 01567_ Released Imp. Treads. 01567_ Released Ion Engine. 01567_ Released Lgt. Assault Rifle. 01567_ Released Med. Storage Unit. 01567_ Extracted 1 energy. Map ----- +----------------------------------------------------+ | ?????????????????????????????????????????????????? | | ?????????????????????????????????????????????????? | | ?????????????????????????????????????????????????? | | ?????????????????????????????????????????????????? | | ?????????????????????????????????????????????????? | | ?????????????????????????????????????????????????? | | ?????????????????????????????????????????????????? | | ?????????????????????????????????????????????????? | | ?????????????????????????????????????????????????? | | ?????????????????????????????????????????????????? | | ?????????????????????????????????????????????????? | | ?????????????????????????????????????????????????? | | ?????????????????????????????????????????????????? | | ?????????????????????????????????????????????????? | | ?????????????????????????????????????????????????? | | ?????????????????????????????????????????????????? | | ???????????????????????##????????????????????????? | | ??????????????????????? ????????????????????????? | | ???????????????????????# ?????????????#??????????? | | ???????????????????????# ???????????? #?????????? | | ???????????????????????# ??????????? "??????????? | | ??????????????????????## ###??????? ???????????? | | ?????????????????????## ####??? #????????????? | | ?????????????????????# # #?? #?????????????? | | ?????????????????????# ! ##a #??????????????? | | ?????????????????????## @!= a #######??????????? | | ?????????????????????# !=* % $ #??????????? | | ?????????????????????## ![ * #??????????? | | ??????????????????????# ###### #??????????? | | ??????????????????????# [ #??????????????????? | | ??????????????????????# #??????????????????? | | ??????????????????????### % ?????????????????? | | ????????????????????????# = #????????????????? | | ???????????????????????? d #????????????????? | | ???????????????????????## d #????????????????? | | ????????????????????????## # #????????????????? | | ?????????????????????????# #! #????????????????? | | ?????????????????????????####=###????????????????? | | ????????????????????????????#*#??????????????????? | | ????????????????????????????# #??????????????????? | | ???????????????????????????## #??????????????????? | | ?????????????????????????### ##?????????????????? | | ????????????????????????## ##????????????????? | | ????????????????????????#= #????????????????? | | ????????????????????????# [ #????????????????? | | ????????????????????????#* #????????????????? | | ????????????????????????# #????????????????? | | ????????????????????????# ##????????????????? | | ???????????????????????# ## #?????????????????? | | ??????????????????????# ### #?????????????????? | +----------------------------------------------------+ Best States ------------- Heat Dissipation 25 Energy Generation 10 Energy Capacity 250 Matter Stores 300 Matter Capacity 300 Sight Range 16 Terrain Scan Range 16 Terrain Scan Density 10 Evasion (%) 55 Recoil Reduction 2 Item Schematics ----------------- None Robot Schematics ------------------ None Fabricated ------------ Nothing Repaired ---------- Nothing Alien Tech Used ----------------- None Achievements -------------- None Challenges ------------ None Game ------ Seed ElectrostormSalvageEngine Manual? 0 Play Time 00:17:05 Cumulative 15.6 hours Start 2025.06.16 @ 20:07:45 End 2025.06.16 @ 20:23:36 Sessions 1 Manual Loads 0 Difficulty Rogue Special Mode None Game No. 14 Rogue 14 Adventurer 0 Explorer 0 Win Type - Total 2 Types 2/0/0/0/0/0/0/0/0/0 Lore% 12 Gallery% 17 Achievement% 26 Wizard Run 0 Options --------- Layout 0 ASCII 0 Keyboard 1 Movement Vi Keybinds 0 Fullscreen 1 Font 18/SmallcapsGlow Map View 76x50 Zoom Use 0% Tactical HUD 1 Map Filters NONE Filters NONE Steam 1 RUN: f3e644e2-5ec1-4e02-99b6-0020c9d3150e